bitfinex/quotes_BTCUSD_20240821
["timestamp","ask_amount","ask_price","bid_price","bid_amount"]
[1724225662507,1.40787266,59747.0,59746.0,13.92305578]
[1724225662715,1.40787266,59747.0,59746.0,10.97985778]
[1724225662954,1.40787266,59747.0,59746.0,10.68097044]
[1724225663163,1.40787266,59747.0,59746.0,10.99311102]
[1724225663797,1.40787266,59747.0,59746.0,10.88928744]
[1724225663985,1.40787266,59747.0,59746.0,10.91228744]
[1724225665247,1.40787266,59747.0,59746.0,11.88373986]
[1724225665444,1.32487937,59747.0,59746.0,11.98756521]
[1724225665797,1.32487937,59747.0,59746.0,11.67542286]
[1724225666134,1.32487937,59747.0,59746.0,11.60435853]
[1724225667646,1.32487937,59747.0,59746.0,12.03903853]
[1724225667851,1.32487937,59747.0,59746.0,12.09370554]
[1724225668060,1.32487937,59747.0,59746.0,12.0936244]
[1724225668724,1.32487937,59747.0,59746.0,12.04702198]
[1724225669133,1.32487937,59747.0,59746.0,11.65962198]
[1724225669340,1.32487937,59747.0,59746.0,10.71357198]
[1724225669546,1.32487937,59747.0,59746.0,10.69989198]
[1724225670170,1.32487937,59747.0,59746.0,11.80558398]
[1724225670375,1.32487937,59747.0,59746.0,11.57841998]
[1724225670650,1.32487937,59747.0,59746.0,11.43585598]
[1724225671061,1.32487937,59747.0,59746.0,11.27791198]
[1724225671271,1.32487937,59747.0,59746.0,10.98654998]
[1724225671477,1.32487937,59747.0,59746.0,10.58079963]
[1724225671686,1.32487937,59747.0,59746.0,9.93573663]
[1724225671897,1.32487937,59747.0,59746.0,9.54640076]
[1724225672967,1.32487937,59747.0,59746.0,9.54730496]
[1724225673599,1.32487937,59747.0,59746.0,10.52885738]
[1724225674224,1.32487937,59747.0,59746.0,10.58329397]
[1724225674430,1.32487937,59747.0,59746.0,10.58329394]
[1724225674644,1.32487937,59747.0,59746.0,11.01797394]
[1724225675062,1.32487937,59747.0,59746.0,10.96353738]
[1724225675482,1.26700451,59747.0,59746.0,11.33045023]
[1724225675687,1.18019222,59747.0,59746.0,9.34189049]
[1724225677664,1.18019222,59747.0,59746.0,9.26780904]
[1724225677874,1.18019222,59747.0,59746.0,10.23204474]
[1724225678333,1.18019222,59747.0,59746.0,10.22034474]
[1724225678951,1.18019222,59747.0,59746.0,10.17374232]
[1724225679164,1.18019222,59747.0,59746.0,10.18350329]
[1724225679371,1.18019222,59747.0,59746.0,10.17374214]
[1724225679588,1.18019222,59747.0,59746.0,10.18350329]
[1724225679792,1.18019222,59747.0,59746.0,10.17374305]
[1724225680135,1.18019222,59747.0,59746.0,10.22034547]
[1724225680312,1.18019222,59747.0,59746.0,9.88559547]
[1724225680507,1.18019222,59747.0,59746.0,8.92135977]
[1724225680718,1.18019222,59747.0,59746.0,12.50176977]
[1724225680921,1.18019222,59747.0,59746.0,13.46600547]
[1724225681327,1.18019222,59747.0,59746.0,13.8007598]
[1724225681558,1.18019222,59747.0,59746.0,13.4660098]
[1724225682369,1.17999078,59747.0,59746.0,13.4660098]
[1724225683298,1.17999078,59747.0,59746.0,13.38256616]
[1724225683507,1.58719078,59747.0,59746.0,9.83845456]
[1724225683713,1.58719078,59747.0,59746.0,8.12390348]
[1724225683925,1.58719078,59747.0,59746.0,6.42791278]
[1724225684136,1.58719078,59747.0,59746.0,5.68580784]
[1724225684345,1.58719078,59747.0,59746.0,5.61795484]
[1724225684564,1.58719078,59747.0,59746.0,6.17013484]
[1724225685022,1.58719078,59747.0,59746.0,6.15613484]
[1724225685295,1.58719078,59747.0,59746.0,6.17013484]
[1724225685560,1.58719078,59747.0,59746.0,5.83538484]
[1724225686038,1.58719078,59747.0,59746.0,5.80990082]
[1724225686513,1.58719078,59747.0,59746.0,5.90990082]
[1724225686748,1.58719078,59747.0,59746.0,5.89590082]
[1724225686986,1.58719078,59747.0,59746.0,5.94690082]
[1724225687220,1.58719078,59747.0,59746.0,5.98315775]
[1724225687932,1.58719078,59747.0,59746.0,5.99715775]
[1724225688910,1.58719078,59747.0,59746.0,5.97604975]
[1724225689609,1.58719078,59747.0,59746.0,2.51052505]
[1724225689859,1.70639078,59747.0,59746.0,2.14566162]
[1724225690070,1.37269078,59747.0,59746.0,1.0731931]
[1724225690262,1.37269078,59747.0,59746.0,0.88329996]
[1724225690730,0.003,59744.0,59743.0,0.29703]
[1724225690991,0.003,59744.0,59741.0,0.07495154]
[1724225691201,0.003,59744.0,59743.0,0.4]
[1724225692583,0.003,59744.0,59743.0,0.66400298]
[1724225693157,0.004,59744.0,59743.0,0.67600298]
[1724225693553,0.004,59744.0,59743.0,0.67500298]
[1724225693751,0.003,59744.0,59743.0,0.66400298]
[1724225694149,0.004,59744.0,59743.0,0.67500298]
[1724225694378,0.003,59744.0,59743.0,0.66400298]
[1724225694632,0.004,59744.0,59743.0,0.67600298]
[1724225695035,0.004,59744.0,59743.0,2.17600298]
[1724225695834,0.005,59744.0,59743.0,2.18800298]
[1724225696170,0.004,59744.0,59743.0,0.67600298]
[1724225696277,0.004,59744.0,59743.0,0.66400298]
[1724225696278,0.003,59744.0,59743.0,0.66400298]
[1724225696481,0.005,59744.0,59743.0,0.66500298]
[1724225696900,0.003,59744.0,59743.0,0.66400298]
[1724225697112,0.004,59744.0,59743.0,0.66400298]
[1724225697367,0.004,59744.0,59743.0,0.66500298]
[1724225697368,0.005,59744.0,59743.0,0.66500298]
[1724225697542,0.002,59744.0,59743.0,0.66500298]
[1724225697738,0.002,59744.0,59743.0,0.66590718]
[1724225698144,0.002,59744.0,59743.0,2.16590718]
[1724225698338,0.002,59744.0,59743.0,2.20277168]
[1724225698779,0.002,59744.0,59743.0,2.4431236]
[1724225698976,0.001,59744.0,59743.0,2.2757406]
[1724225699132,0.001,59744.0,59743.0,2.23977168]
[1724225699532,0.001,59744.0,59743.0,2.22577168]
[1724225699745,0.001,59744.0,59743.0,2.23977168]
[1724225700554,1.18016878,59745.0,59743.0,2.23877168]
[1724225700759,1.17916878,59745.0,59744.0,0.37581902]
[1724225700958,1.17916878,59745.0,59744.0,0.30086748]
[1724225701167,1.17916878,59745.0,59744.0,0.37581902]
[1724225701571,1.17916878,59745.0,59744.0,0.37581349]
[1724225702139,1.17916878,59745.0,59744.0,0.33895452]
[1724225702383,1.17916878,59745.0,59744.0,0.26400298]
[1724225702591,1.17916878,59745.0,59744.0,1.77800298]
[1724225702792,1.17916878,59745.0,59744.0,1.81486195]
[1724225703165,1.17916878,59745.0,59744.0,1.88950199]
[1724225703374,1.17916878,59745.0,59744.0,1.81486195]
[1724225704127,1.17916878,59745.0,59744.0,1.82886195]
[1724225705465,1.18016878,59745.0,59744.0,1.82886195]
[1724225705665,1.18016878,59745.0,59744.0,1.82886191]
[1724225706871,1.18216878,59745.0,59744.0,1.82886191]
[1724225707277,1.17916878,59745.0,59744.0,1.82886191]
[1724225707479,1.17916878,59745.0,59744.0,1.90350195]
[1724225708037,1.17916878,59745.0,59744.0,1.82886191]
[1724225708248,1.17916878,59745.0,59744.0,1.90350195]
[1724225708454,1.17916878,59745.0,59744.0,1.90350883]
[1724225709297,1.17916878,59745.0,59744.0,1.90441303]
[1724225710064,1.17916878,59745.0,59744.0,1.90441442]
[1724225711511,1.18016878,59745.0,59744.0,1.89679411]
[1724225711719,1.18016878,59745.0,59744.0,0.44656739]
[1724225711923,1.18216878,59745.0,59744.0,0.34268046]
[1724225712350,1.18216878,59745.0,59744.0,0.37953939]
[1724225712575,1.18216878,59745.0,59744.0,0.37955177]
[1724225713071,1.18216878,59745.0,59744.0,0.72976611]
[1724225713256,1.18216878,59745.0,59744.0,0.4289042]
[1724225713257,1.20840743,59745.0,59744.0,0.4289042]
[1724225714222,1.20840743,59745.0,59744.0,0.4149042]
[1724225714650,1.20840743,59745.0,59744.0,0.4289042]
[1724225714846,1.20840743,59745.0,59744.0,0.5289042]
[1724225715052,1.20840743,59745.0,59744.0,0.5149042]
[1724225715611,1.20840743,59745.0,59744.0,0.5289042]
[1724225716078,1.20840743,59745.0,59744.0,0.5009042]
[1724225716296,0.005,59744.0,59743.0,0.0009042]
[1724225716516,0.17000298,59744.0,59743.0,0.0009042]
[1724225716955,0.16900298,59744.0,59743.0,0.0009042]
[1724225717164,0.17000298,59744.0,59743.0,0.0009042]
[1724225717805,0.17000298,59744.0,59732.0,0.0009042]
[1724225717806,0.005,59731.0,59724.0,0.51944166]
[1724225718024,0.005,59731.0,59724.0,0.49319574]
[1724225718262,0.005,59731.0,59724.0,0.0009042]
[1724225718531,0.03124974,59731.0,59724.0,0.0009042]
[1724225719677,0.03124974,59731.0,59730.0,0.0149042]
[1724225720110,0.32214974,59731.0,59730.0,0.0289042]
[1724225723748,0.02924974,59731.0,59730.0,0.0289042]
[1724225724979,0.02924974,59731.0,59730.0,0.0149042]
[1724225725378,0.03024974,59731.0,59730.0,0.0269042]
[1724225725587,0.03024974,59731.0,59730.0,0.0129042]
[1724225725986,0.03024974,59731.0,59730.0,0.0269042]
[1724225726183,0.03024974,59731.0,59730.0,0.19090718]
[1724225726540,0.03024974,59731.0,59730.0,0.29090718]
[1724225727359,0.001,59731.0,59730.0,0.27690718]
[1724225727599,1.17916878,59732.0,59731.0,0.2]
[1724225727806,1.17916878,59732.0,59731.0,0.83900298]
[1724225728355,1.17916878,59732.0,59731.0,0.88879303]
[1724225728783,1.17916878,59732.0,59731.0,0.83900298]
[1724225729207,1.17916878,59732.0,59731.0,1.30973313]
[1724225729373,1.17916878,59732.0,59731.0,1.34858268]
[1724225729586,1.17916878,59732.0,59731.0,1.23815589]
[1724225730260,1.17916878,59732.0,59731.0,2.72415589]
[1724225730477,1.17916878,59732.0,59731.0,2.76102541]
[1724225730703,1.17916878,59732.0,59731.0,4.27985436]
[1724225730931,1.17916878,59732.0,59731.0,4.77542542]
[1724225731177,1.17916878,59732.0,59731.0,3.9714104]
[1724225731417,1.17916878,59732.0,59731.0,4.01766962]
[1724225731618,1.17916878,59732.0,59731.0,3.51208641]
[1724225731836,1.17916878,59732.0,59731.0,3.13629518]
[1724225732053,1.18216878,59732.0,59731.0,2.98683541]
[1724225732262,1.18216878,59732.0,59731.0,0.90863541]
[1724225732477,1.18216878,59732.0,59731.0,0.87176589]
[1724225732682,1.18216878,59732.0,59731.0,2.47147142]
[1724225732888,1.18216878,59732.0,59731.0,2.49664094]
[1724225733295,1.17916878,59732.0,59731.0,0.89693541]
[1724225733507,1.18016878,59732.0,59731.0,0.86006589]
[1724225733713,1.18216878,59732.0,59731.0,0.87406589]
[1724225733916,1.17916878,59732.0,59731.0,0.87497119]
[1724225734126,1.18016878,59732.0,59731.0,0.86097119]
[1724225734332,1.18016878,59732.0,59731.0,0.97159339]
[1724225734747,1.17916878,59732.0,59731.0,0.98559339]
[1724225735149,1.17916878,59732.0,59731.0,0.98574551]
[1724225735399,1.17916878,59732.0,59731.0,0.86101503]
[1724225735610,1.17916878,59732.0,59731.0,0.84701503]
[1724225735806,1.17916878,59732.0,59731.0,1.59423203]
[1724225735974,1.17916878,59732.0,59731.0,1.64510155]
[1724225736158,1.17916878,59732.0,59731.0,1.79477813]
[1724225736358,1.17916878,59732.0,59731.0,3.61561213]
[1724225736621,1.17916878,59732.0,59731.0,3.62961213]
[1724225736823,1.17916878,59732.0,59731.0,3.14510155]
[1724225737032,1.18016878,59732.0,59731.0,3.09423203]
[1724225737238,1.18016878,59732.0,59731.0,2.97768169]
[1724225737445,1.17916878,59732.0,59731.0,2.97768169]
[1724225737657,1.17916878,59732.0,59731.0,2.96368169]
[1724225737865,1.17916878,59732.0,59731.0,1.46368169]
[1724225738070,1.17916878,59732.0,59731.0,1.44081503]
[1724225738485,1.17916878,59732.0,59731.0,1.42681503]
[1724225738750,1.18216878,59732.0,59731.0,1.42681503]
[1724225738961,1.18216878,59732.0,59731.0,1.44081503]
[1724225739165,1.18216878,59732.0,59731.0,1.42681503]
[1724225739166,1.17916878,59732.0,59731.0,1.42681503]
[1724225739600,1.17916878,59732.0,59731.0,1.47768169]
[1724225739834,1.17916878,59732.0,59731.0,1.46368169]
[1724225740041,1.18016878,59732.0,59731.0,1.46368169]
[1724225740252,1.18016878,59732.0,59731.0,1.47768169]
[1724225740461,1.18016878,59732.0,59731.0,1.46368169]
[1724225740681,1.18216878,59732.0,59731.0,1.44968169]
[1724225740892,1.18216878,59732.0,59731.0,1.46368169]
[1724225741542,1.17916878,59732.0,59731.0,1.44968169]
[1724225741750,1.17916878,59732.0,59731.0,1.51672469]
[1724225741983,1.18016878,59732.0,59731.0,3.03072469]
[1724225742198,1.17916878,59732.0,59731.0,1.53072469]
[1724225742423,1.17916878,59732.0,59731.0,1.51672469]
[1724225742641,1.17916878,59732.0,59731.0,1.53072469]
[1724225743088,1.17916878,59732.0,59731.0,1.51672469]
[1724225743298,1.17916878,59732.0,59731.0,1.53072469]
[1724225743729,1.18016878,59732.0,59731.0,1.51672469]
[1724225743936,1.18016878,59732.0,59731.0,1.54472469]
[1724225744142,1.18216878,59732.0,59731.0,1.54472469]
[1724225744347,1.18216878,59732.0,59731.0,1.530717]
[1724225744348,1.17916878,59732.0,59731.0,1.530717]
[1724225745603,1.17999178,59732.0,59731.0,1.530717]
[1724225745816,1.17999178,59732.0,59731.0,1.544717]
[1724225746022,1.17999178,59732.0,59731.0,2.046968]
[1724225746284,1.17999178,59732.0,59731.0,2.19669983]
[1724225746473,1.17999178,59732.0,59731.0,3.69669983]
[1724225746895,1.17999178,59732.0,59731.0,2.19669983]
[1724225747102,1.17999178,59732.0,59731.0,2.16869983]
[1724225747310,1.17999178,59732.0,59731.0,2.018968]
[1724225747519,1.17999178,59732.0,59731.0,2.046968]
[1724225747719,1.17999178,59732.0,59731.0,2.1968329]
[1724225747937,1.17999178,59732.0,59731.0,2.1828329]
[1724225748132,1.17999178,59732.0,59731.0,2.367802]
[1724225748340,1.17999178,59732.0,59731.0,2.381802]
[1724225748745,1.17999178,59732.0,59731.0,3.867802]
[1724225749181,1.17999178,59732.0,59731.0,3.00781952]
[1724225749182,1.18099178,59732.0,59731.0,3.00781952]
[1724225749378,1.18099178,59732.0,59731.0,3.0306844]
[1724225749782,1.18099178,59732.0,59731.0,1.54470916]
[1724225749987,1.18099178,59732.0,59731.0,0.96490916]
[1724225750399,1.18099178,59732.0,59731.0,0.97890916]
[1724225750609,1.18299178,59732.0,59731.0,0.96490916]
[1724225750783,1.18299178,59732.0,59731.0,0.95090916]
[1724225751186,1.17999178,59732.0,59731.0,0.96490916]
[1724225751592,1.17999178,59732.0,59731.0,0.95090916]
[1724225751755,1.18299178,59732.0,59731.0,0.95090916]
[1724225751952,1.18299178,59732.0,59731.0,0.97890916]
[1724225752242,1.18299178,59732.0,59731.0,1.12881209]
[1724225752451,1.18299178,59732.0,59731.0,1.11481209]
[1724225752630,1.18299178,59732.0,59731.0,1.12881209]
[1724225753302,1.18299178,59732.0,59731.0,0.97890916]
[1724225753511,1.18299178,59732.0,59731.0,0.95090916]
[1724225753731,1.18299178,59732.0,59731.0,0.91490618]
[1724225753910,1.18299178,59732.0,59731.0,0.43983735]
[1724225753911,1.18499178,59732.0,59731.0,0.43983735]
[1724225754164,1.21123789,59732.0,59731.0,0.43983735]
[1724225754394,1.21123789,59732.0,59731.0,0.42583735]
[1724225754602,1.21123789,59732.0,59731.0,0.4149053]
[1724225754803,1.21123789,59732.0,59731.0,0.4289053]
[1724225755009,1.21123789,59732.0,59731.0,0.4149053]
[1724225755215,1.21123789,59732.0,59731.0,0.4009053]
[1724225755425,1.21123789,59732.0,59731.0,0.4149053]
[1724225755626,1.21123789,59732.0,59731.0,0.4009053]
[1724225756045,1.21123789,59732.0,59714.0,0.267062]
[1724225756046,0.005,59725.0,59724.0,0.0009042]
[1724225756462,0.005,59725.0,59724.0,0.01616185]
[1724225756672,0.005,59725.0,59724.0,0.0009042]
[1724225756875,0.03125206,59725.0,59724.0,0.01398424]
[1724225757075,0.03125206,59725.0,59724.0,0.0009042]
[1724225757279,0.03125206,59725.0,59724.0,0.01398424]
[1724225757486,0.03125206,59725.0,59724.0,0.0149042]
[1724225757665,0.03125206,59725.0,59724.0,0.02798424]
[1724225758310,0.03125206,59725.0,59724.0,0.04198424]
[1724225758528,0.03125206,59725.0,59724.0,0.02798424]
[1724225758731,0.03125206,59725.0,59724.0,0.01398424]
[1724225759317,0.03125206,59725.0,59724.0,0.02798424]
[1724225759670,0.03225206,59725.0,59724.0,0.02798424]
[1724225759880,0.03125206,59725.0,59724.0,0.02798424]
[1724225760277,0.03125206,59725.0,59724.0,0.04198424]
[1724225760686,0.03225206,59725.0,59724.0,0.02798424]
[1724225760890,0.03125206,59725.0,59724.0,0.02798424]
[1724225761095,0.03125206,59725.0,59724.0,0.0289042]
[1724225761334,0.03125206,59725.0,59724.0,0.0149042]
[1724225761747,0.03125206,59725.0,59724.0,0.0289042]
[1724225762374,0.03225206,59725.0,59724.0,0.0289042]
[1724225762794,0.03125206,59725.0,59724.0,0.0289042]
[1724225763628,0.03225206,59725.0,59724.0,0.0289042]
[1724225763837,0.19625504,59725.0,59724.0,0.0289042]
[1724225764075,0.36023382,59725.0,59724.0,0.0289042]
[1724225764491,0.19625504,59725.0,59724.0,0.0289042]
[1724225765246,0.19525504,59725.0,59724.0,0.0289042]
[1724225765457,0.03125206,59725.0,59724.0,0.0289042]
[1724225768379,0.03225206,59725.0,59724.0,0.0289042]
[1724225768598,0.03125206,59725.0,59724.0,0.0289042]
[1724225769021,0.35923382,59725.0,59724.0,0.0289042]
[1724225769229,0.36023382,59725.0,59724.0,0.0289042]
[1724225769433,0.35923382,59725.0,59724.0,0.0289042]
[1724225770267,0.36023382,59725.0,59724.0,0.0289042]
[1724225771019,0.38323382,59725.0,59724.0,0.0289042]
[1724225771221,0.38523382,59725.0,59724.0,0.0289042]
[1724225771459,0.006,59717.0,59716.0,0.1]
[1724225771670,0.17000298,59717.0,59716.0,0.1]
[1724225771878,0.46090298,59717.0,59716.0,0.10928362]
[1724225772082,0.45990298,59717.0,59716.0,0.1]
[1724225772288,0.4861599,59717.0,59716.0,0.10928362]
[1724225772914,0.4861599,59717.0,59716.0,0.12328362]
[1724225773952,0.4861599,59717.0,59716.0,0.13728362]
[1724225774156,0.4861599,59717.0,59716.0,0.12328362]
[1724225774358,0.4861599,59717.0,59716.0,0.10928362]
[1724225774561,0.4861599,59717.0,59716.0,0.13728362]
[1724225774562,0.4871599,59717.0,59716.0,0.13728362]
[1724225774764,0.32215692,59717.0,59716.0,0.12328362]
[1724225775602,0.32215692,59717.0,59716.0,0.13728362]
[1724225775809,0.32315692,59717.0,59716.0,0.13728362]
[1724225776021,0.32315692,59717.0,59716.0,0.12328362]
[1724225776432,0.32415692,59717.0,59716.0,0.13728362]
[1724225776855,0.32315692,59717.0,59716.0,0.12328362]
[1724225777269,0.32415692,59717.0,59716.0,0.13728362]
[1724225781016,0.32415692,59717.0,59716.0,0.13818892]
[1724225782898,0.35667261,59717.0,59716.0,0.13818892]
[1724225783310,0.32415692,59717.0,59716.0,0.1289053]
[1724225783733,0.32415692,59717.0,59716.0,0.13822238]
[1724225784350,0.32415692,59717.0,59716.0,0.32662238]
[1724225788239,0.03125692,59717.0,59716.0,1.13922238]
[1724225788444,0.03125692,59717.0,59716.0,1.17610956]
[1724225788851,0.03125692,59717.0,59716.0,0.4588026]
[1724225789077,0.03025692,59717.0,59716.0,0.4588026]
[1724225789484,0.03025692,59717.0,59716.0,0.4728026]
[1724225789485,0.03125692,59717.0,59716.0,0.4728026]
[1724225790536,0.03025692,59717.0,59716.0,0.4728026]
[1724225790947,0.03125692,59717.0,59716.0,0.4868026]
[1724225791155,0.03325692,59717.0,59716.0,0.4868026]
[1724225791610,0.03325692,59717.0,59716.0,0.44991542]
[1724225791817,0.03325692,59717.0,59716.0,0.03731542]
[1724225793702,0.03325692,59717.0,59708.0,0.1829]
[1724225793703,0.002,59706.0,59705.0,0.421]
[1724225793909,0.002,59701.0,59700.0,0.02625481]
[1724225794142,0.003,59698.0,59696.0,0.6056]
[1724225794321,0.003,59697.0,59696.0,0.6056]
[1724225794740,0.003,59697.0,59696.0,0.64249572]
[1724225794954,0.003,59697.0,59696.0,0.6056]
[1724225795158,0.003,59697.0,59694.0,0.4]
[1724225795159,0.005,59695.0,59694.0,0.3764]
[1724225795816,0.03126368,59695.0,59694.0,0.3764]
[1724225796444,0.03106216,59695.0,59694.0,0.38956493]
[1724225796672,0.02926368,59695.0,59694.0,0.38956493]
[1724225796877,0.03026368,59695.0,59694.0,0.38956493]
[1724225797296,0.02926368,59695.0,59694.0,0.38956493]
[1724225797913,0.03026368,59695.0,59694.0,0.38956493]
[1724225798326,0.02926368,59695.0,59694.0,0.38956493]
[1724225798744,0.03126368,59695.0,59694.0,0.38956493]
[1724225798948,0.03026368,59695.0,59694.0,0.38956493]
[1724225799152,0.03126368,59695.0,59694.0,0.38956493]
[1724225799391,0.03026368,59695.0,59694.0,0.38956493]
[1724225800263,0.02926368,59695.0,59694.0,0.38956493]
[1724225800688,0.03026368,59695.0,59694.0,0.38956493]
[1724225800893,0.03126368,59695.0,59694.0,0.38956493]
[1724225801094,0.03026368,59695.0,59694.0,0.38956493]
[1724225801324,0.03026368,59695.0,59694.0,0.43964894]
[1724225801536,0.03126368,59695.0,59694.0,0.43964894]
[1724225801758,0.03126368,59695.0,59694.0,0.38956493]
[1724225802581,0.02826368,59695.0,59694.0,0.38956493]
[1724225802812,0.02826368,59695.0,59694.0,0.63744894]
[1724225803257,0.02826368,59695.0,59694.0,0.58736493]
[1724225803468,0.02726368,59695.0,59694.0,0.58736493]
[1724225803673,0.02726368,59695.0,59694.0,1.05880868]
[1724225803878,0.02726368,59695.0,59694.0,1.15901244]
[1724225803879,0.02826368,59695.0,59694.0,1.15901244]
[1724225804086,0.02726368,59695.0,59694.0,1.15901244]
[1724225804513,0.002,59695.0,59694.0,1.15901244]
[1724225804726,0.001,59695.0,59694.0,1.15901244]
[1724225804933,0.004,59695.0,59694.0,1.05880868]
[1724225805138,0.005,59695.0,59694.0,1.05880868]
[1724225805761,0.001,59695.0,59694.0,1.05880868]
[1724225805966,0.001,59695.0,59694.0,1.15901244]
[1724225806170,0.002,59695.0,59694.0,1.15901244]
[1724225806546,0.002,59695.0,59694.0,1.05880868]
[1724225806770,0.003,59695.0,59694.0,1.05880868]
[1724225806886,0.002,59695.0,59694.0,1.21914763]
[1724225807294,0.002,59695.0,59694.0,1.22005183]
[1724225807901,0.002,59695.0,59694.0,0.84860808]
[1724225808102,0.003,59695.0,59694.0,1.22004957]
[1724225808351,0.002,59695.0,59694.0,1.22004957]
[1724225810391,0.002,59695.0,59694.0,1.34530831]
[1724225810562,0.003,59702.0,59701.0,0.9832]
[1724225810778,0.003,59702.0,59701.0,1.8906429]
[1724225810996,0.02626163,59703.0,59702.0,0.3848]
[1724225811194,0.02626163,59703.0,59702.0,0.89332983]
[1724225811463,0.02626163,59703.0,59702.0,0.7931367]
[1724225811657,0.02626163,59703.0,59702.0,0.90281236]
[1724225811811,0.02726163,59703.0,59702.0,0.80261154]
[1724225812017,0.02726163,59703.0,59702.0,0.902808]
[1724225812403,0.03026163,59703.0,59702.0,0.902808]
[1724225812586,0.03026163,59703.0,59702.0,0.902778]
[1724225813210,0.02726163,59703.0,59702.0,0.902778]
[1724225813414,0.02726163,59703.0,59702.0,0.96656817]
[1724225813615,0.02826163,59703.0,59702.0,1.07956817]
[1724225813848,0.02826163,59703.0,59702.0,1.20483419]
[1724225814311,0.02926163,59703.0,59702.0,1.20483419]
[1724225815217,0.02826163,59703.0,59702.0,1.20483419]
[1724225815437,0.02926163,59703.0,59702.0,1.20483419]
[1724225815810,0.02926163,59703.0,59702.0,1.16794334]
[1724225816010,0.02926163,59703.0,59702.0,1.2048334]
[1724225816418,0.02926163,59703.0,59702.0,1.07956738]
[1724225816842,0.02926163,59703.0,59702.0,1.20485736]
[1724225817066,0.02926163,59703.0,59702.0,1.07956738]
[1724225817468,0.03126163,59703.0,59702.0,1.20485175]
[1724225818547,0.03126163,59703.0,59702.0,1.16796169]
[1724225819360,0.03126163,59703.0,59702.0,1.04267732]
[1724225819560,0.03126163,59703.0,59702.0,0.87867434]
[1724225820184,0.03126163,59703.0,59702.0,1.04267732]
[1724225820185,0.002,59703.0,59702.0,1.04267732]
[1724225820385,0.002822,59703.0,59702.0,1.76867732]
[1724225821113,0.002822,59703.0,59702.0,1.76865822]
[1724225821717,0.003822,59703.0,59702.0,1.76865822]
[1724225822383,0.002822,59703.0,59702.0,1.76865822]
[1724225822580,0.003822,59703.0,59702.0,1.76865822]
[1724225823184,0.005822,59703.0,59702.0,1.60465524]
[1724225823334,0.0320796,59703.0,59702.0,1.60465524]
[1724225824728,0.0290796,59703.0,59702.0,1.60465524]
[1724225825314,0.0290796,59703.0,59702.0,2.30255822]
[1724225825509,0.00179848,59714.0,59710.0,0.4]
[1724225825737,0.00079848,59712.0,59711.0,0.4055]
[1724225825977,0.00179848,59712.0,59711.0,0.4055]
[1724225826167,0.00179848,59712.0,59711.0,0.41498391]
[1724225826344,0.02805659,59713.0,59711.0,0.41498391]
[1724225827142,0.02625811,59713.0,59711.0,0.657005]
[1724225827871,0.02625811,59713.0,59712.0,0.82563157]
[1724225828081,0.02625811,59713.0,59712.0,0.75992955]
[1724225828291,0.02625811,59713.0,59712.0,0.38082955]
[1724225828518,0.02625811,59713.0,59712.0,0.45599258]
[1724225828519,0.02805659,59713.0,59712.0,0.45599258]
[1724225828667,0.02805659,59713.0,59712.0,0.00947962]
[1724225828864,0.02805659,59713.0,59712.0,0.05959252]
[1724225829485,0.02805659,59713.0,59712.0,0.07359252]
[1724225829970,0.02805659,59713.0,59712.0,0.07359337]
[1724225830202,0.21525659,59713.0,59712.0,0.00947962]
[1724225830415,0.21525659,59713.0,59712.0,0.014]
[1724225830621,0.21525659,59713.0,59712.0,0.02723253]
[1724225831052,0.21625659,59713.0,59712.0,0.02723253]
[1724225831457,0.21525659,59713.0,59712.0,0.02723253]
[1724225831693,0.001,59705.0,59703.0,0.05011375]
[1724225831915,0.001,59705.0,59701.0,0.05011375]
[1724225831916,0.00179848,59705.0,59701.0,0.05011375]
[1724225832140,0.47569848,59705.0,59704.0,0.01323253]
[1724225832351,0.47569848,59705.0,59698.0,0.05011375]
[1724225832352,0.00079848,59700.0,59698.0,0.05011375]
[1724225832555,0.00179848,59699.0,59698.0,0.05011375]
[1724225833624,0.02626199,59699.0,59698.0,0.43951375]
[1724225833836,0.02626199,59699.0,59698.0,0.3894]
[1724225834452,0.02806047,59699.0,59698.0,0.07519651]
[1724225835095,0.02626199,59699.0,59698.0,0.07519651]
[1724225835515,0.02626199,59699.0,59698.0,0.08919651]
[1724225835724,0.02626199,59699.0,59698.0,0.10319651]
[1724225835924,0.02626199,59699.0,59698.0,0.46064166]
[1724225836128,0.02626199,59699.0,59698.0,0.38544515]
[1724225836537,0.02626199,59699.0,59698.0,0.39944515]
[1724225836757,0.02626199,59699.0,59698.0,0.38544515]
[1724225836959,0.02626199,59699.0,59698.0,0.39944515]
[1724225837195,0.02806047,59699.0,59698.0,0.39944515]
[1724225837459,0.21536047,59699.0,59698.0,0.014]
[1724225837652,0.02806047,59699.0,59698.0,0.06414723]
[1724225838353,0.02806047,59699.0,59698.0,0.014]
[1724225838557,0.02806047,59699.0,59697.0,0.4]
[1724225838558,0.00179848,59698.0,59697.0,0.4]
[1724225838765,0.00179848,59698.0,59697.0,0.77145268]
[1724225838967,0.02806047,59699.0,59698.0,0.014]
[1724225839174,0.02806047,59699.0,59698.0,0.81065268]
[1724225839377,0.21426047,59699.0,59698.0,0.39945268]
[1724225839587,0.21426047,59699.0,59698.0,0.08924149]
[1724225839798,0.21426047,59699.0,59697.0,0.47524149]
[1724225839799,0.001,59698.0,59697.0,0.47524149]
[1724225839974,0.00179848,59698.0,59697.0,0.84670498]
[1724225840216,0.00179848,59698.0,59697.0,0.48924149]
[1724225840373,0.00179848,59698.0,59697.0,0.86070203]
[1724225840952,0.00179848,59698.0,59697.0,0.86070488]
[1724225841178,0.00179848,59698.0,59697.0,0.48924149]
[1724225841381,0.00179848,59698.0,59697.0,0.8607057]
[1724225842267,0.00179848,59698.0,59697.0,0.86071387]
[1724225842503,0.00179848,59698.0,59697.0,0.87471387]
[1724225842692,0.00179848,59698.0,59697.0,0.79946421]
[1724225842911,0.00179848,59698.0,59697.0,0.87471404]
[1724225843290,0.00179848,59698.0,59697.0,0.86071404]
[1724225843494,0.00179848,59698.0,59697.0,0.87394832]
[1724225843717,0.00179848,59698.0,59697.0,0.87394911]
[1724225844046,0.00179848,59698.0,59697.0,0.88794911]
[1724225844249,0.00179848,59698.0,59697.0,0.51648376]
[1724225844445,0.00179848,59698.0,59697.0,0.88794817]
[1724225845266,0.00179848,59698.0,59697.0,0.85994817]
[1724225845678,0.00179848,59698.0,59697.0,0.88794817]
[1724225845886,0.00179848,59698.0,59697.0,0.87394817]
[1724225846031,0.00179848,59698.0,59697.0,0.85994817]
[1724225846237,0.00179848,59698.0,59697.0,0.87394817]
[1724225846439,0.00179848,59698.0,59697.0,0.88794817]
[1724225846947,0.63940146,59698.0,59697.0,0.01323253]
[1724225847145,0.00179848,59696.0,59695.0,0.0009042]
[1724225847751,0.1807,59702.0,59701.0,0.07193953]
[1724225848300,0.2909,59702.0,59701.0,0.07193953]
[1724225848656,0.000822,59703.0,59701.0,0.48433953]
[1724225849465,0.000822,59703.0,59701.0,0.51033953]